fUST/lending_fUST_20240719
["ID","MTS","AMOUNT","RATE_DAILY","PERIOD"]
[332607150,1721341869914,-500.0,0.00021917,2]
[332607151,1721341869924,-579.34,0.00021917,2]
[332607152,1721341869935,-642.57,0.00021917,2]
[332607153,1721341869945,-343.49376133,0.00021917,2]
[332607154,1721341870019,-156.50623867,0.00021917,2]
[332607155,1721341870029,-500.0,0.00021917,2]
[332607156,1721341870039,-508.85088608,0.00021917,2]
[332607157,1721341870049,-502.03551069,0.00021917,2]
[332607158,1721341870060,-523.53933258,0.00021917,2]
[332607159,1721341870070,-529.49838152,0.00021917,2]
[332607160,1721341870079,-507.74465198,0.00021917,2]
[332607161,1721341870089,-500.0,0.00021917,2]
[332607162,1721341870099,-500.0,0.00021917,2]
[332607163,1721341870109,-512.11295455,0.00021917,2]
[332607164,1721341870120,-502.61155734,0.00021917,2]
[332607165,1721341870130,-500.0,0.00021917,2]
[332607166,1721341870140,-503.2814085,0.00021917,2]
[332607167,1721341870149,-502.28912882,0.00021917,2]
[332607168,1721341870159,-500.0,0.00021917,2]
[332607169,1721341870169,-521.66459878,0.00021917,2]
[332607170,1721341870179,-503.46610901,0.00021917,2]
[332607171,1721341870189,-500.0,0.00021917,2]
[332607172,1721341870199,-500.0,0.00021917,2]
[332607173,1721341870208,-502.67842347,0.00021917,2]
[332607174,1721341870218,-500.0,0.00021917,2]
[332607175,1721341870228,-501.9025296,0.00021917,2]
[332607176,1721341870238,-500.0,0.00021917,2]
[332607177,1721341870247,-185.82173118,0.00021917,2]
[332607178,1721341870256,-502.43576816,0.00021917,2]
[332607179,1721341870267,-500.0,0.00021917,2]
[332607180,1721341870277,-500.0,0.00021917,2]
[332607181,1721341870287,-522.49349374,0.00021917,2]
[332607182,1721341870297,-500.0,0.00021917,2]
[332607183,1721341870309,-500.0,0.00021917,2]
[332607184,1721341870318,-500.0,0.00021917,2]
[332607185,1721341870329,-503.11813974,0.00021917,2]
[332607186,1721341870342,-500.0,0.00021917,2]
[332607187,1721341870352,-502.84272782,0.00021917,2]
[332607188,1721341870361,-507.81365659,0.00021917,2]
[332607189,1721341870371,-500.0,0.00021917,2]
[332607190,1721341870381,-502.96696967,0.00021917,2]
[332607191,1721341870391,-500.0,0.00021917,2]
[332607192,1721341870402,-500.0,0.00021917,2]
[332607193,1721341870412,-500.0,0.00021917,2]
[332607194,1721341870422,-557.36468229,0.00021917,2]
[332607195,1721341870432,-500.0,0.00021917,2]
[332607196,1721341870443,-500.0,0.00021917,2]
[332607197,1721341870452,-519.06308224,0.00021917,2]
[332607198,1721341870463,-500.0,0.00021917,2]
[332607199,1721341870473,-504.63646626,0.00021917,2]
[332607200,1721341870483,-505.74328374,0.00021917,2]
[332607201,1721341870492,-500.0,0.00021917,2]
[332607202,1721341870502,-518.0540431,0.00021917,2]
[332607203,1721341870512,-500.0,0.00021917,2]
[332607204,1721341870522,-500.0,0.00021917,2]
[332607205,1721341870532,-503.66113844,0.00021917,2]
[332607206,1721341870541,-500.0,0.00021917,2]
[332607207,1721341870551,-500.0,0.00021917,2]
[332607208,1721341870563,-502.83693816,0.00021917,2]
[332607209,1721341870574,-500.0,0.00021917,2]
[332607210,1721341870587,-499.72757163,0.00021917,2]
[332607211,1721341870596,-503.48851002,0.00021917,2]
[332607212,1721341870606,-527.19240283,0.00021917,2]
[332607213,1721341870616,-500.0,0.00021917,2]
[332607214,1721341870625,-503.66910884,0.00021917,2]
[332607215,1721341870635,-503.73565409,0.00021917,2]
[332607216,1721341870645,-500.0,0.00021917,2]
[332607217,1721341870655,-500.0,0.00021917,2]
[332607218,1721341870664,-500.0,0.00021917,2]
[332607219,1721341870675,-502.93187272,0.00021917,2]
[332607220,1721341870684,-500.0,0.00021917,2]
[332607221,1721341870695,-504.73184487,0.00021917,2]
[332607222,1721341870707,-500.0,0.00021917,2]
[332607223,1721341870718,-500.0,0.00021917,2]
[332607224,1721341870728,-500.0,0.00021917,2]
[332607225,1721341870740,-500.0,0.00021917,2]
[332607226,1721341870750,-502.32137402,0.00021917,2]
[332607227,1721341870759,-500.0,0.00021917,2]
[332607228,1721341870769,-501.18646479,0.00021917,2]
[332607229,1721341870779,-570.97671348,0.00021917,2]
[332607230,1721341870788,-502.70337452,0.00021917,2]
[332607231,1721341870798,-500.0,0.00021917,2]
[332607232,1721341870808,-452.51362048,0.00021917,2]
[332607233,1721341870818,-505.89160635,0.00021917,2]
[332607234,1721341870828,-503.991758,0.00021917,2]
[332607235,1721341870839,-506.48846043,0.00021917,2]
[332607236,1721341870849,-500.0,0.00021917,2]
[332607237,1721341870858,-506.24037015,0.00021917,2]
[332607238,1721341870868,-503.47703731,0.00021917,2]
[332607239,1721341870877,-500.0,0.00021917,2]
[332607240,1721341870887,-500.0,0.00021917,2]
[332607241,1721341870897,-506.10231363,0.00021917,2]
[332607242,1721341870906,-508.31,0.00021917,2]
[332607243,1721341870915,-500.0,0.00021917,2]
[332607244,1721341870925,-500.0,0.00021917,2]
[332607245,1721341870934,-507.26739249,0.00021917,2]
[332607246,1721341870944,-500.0,0.00021917,2]
[332607247,1721341870954,-513.26897082,0.00021917,2]
[332607248,1721341870964,-500.0,0.00021917,2]
[332607249,1721341870973,-500.0,0.00021917,2]
[332607250,1721341870982,-643.14853421,0.00021917,2]
[332607251,1721341870992,-502.72172953,0.00021917,2]
[332607252,1721341871002,-500.0,0.00021917,2]
[332607253,1721341871011,-511.59879377,0.00021917,2]
[332607254,1721341871021,-506.98907949,0.00021917,2]
[332607255,1721341871031,-529.090001,0.00021917,2]
[332607256,1721341871041,-501.00204309,0.00021917,2]
[332607257,1721341871054,-504.75268794,0.00021917,2]
[332607258,1721341871064,-521.96096035,0.00021917,2]
[332607259,1721341871074,-502.99894032,0.00021917,2]
[332607260,1721341871084,-509.00582555,0.00021917,2]
[332607261,1721341871093,-501.788803,0.00021917,2]
[332607262,1721341871103,-503.39002085,0.00021917,2]
[332607263,1721341871112,-503.54254518,0.00021917,2]
[332607264,1721341871123,-504.74364886,0.00021917,2]
[332607265,1721341871132,-508.57568821,0.00021917,2]
[332607266,1721341871142,-502.62402367,0.00021917,2]
[332607267,1721341871151,-500.0,0.00021917,2]
[332607268,1721341871162,-500.0,0.00021917,2]
[332607269,1721341871171,-500.0,0.00021917,2]
[332607270,1721341871180,-500.0,0.00021917,2]
[332607271,1721341871190,-500.0,0.00021917,2]
[332607272,1721341871200,-583.38167085,0.00021917,2]
[332607273,1721341871210,-513.9093216,0.00021917,2]
[332607274,1721341871219,-507.31472587,0.00021917,2]
[332607275,1721341871228,-500.0,0.00021917,2]
[332607276,1721341871238,-503.36826388,0.00021917,2]
[332607277,1721341871249,-514.19060259,0.00021917,2]
[332607278,1721341871259,-513.63782209,0.00021917,2]
[332607279,1721341871269,-500.0,0.00021917,2]
[332607280,1721341871280,-504.91389881,0.00021917,2]
[332607281,1721341871291,-504.19560854,0.00021917,2]
[332607282,1721341871303,-504.91331471,0.00021917,2]
[332607283,1721341871313,-514.87116519,0.00021917,2]
[332607284,1721341871323,-507.52551956,0.00021917,2]
[332607285,1721341871339,-526.51191048,0.00021917,2]
[332607286,1721341871350,-210.43986679,0.00021917,2]
[332607287,1721341871362,-500.0,0.00021917,2]
[332607288,1721341871375,-500.0,0.00021917,2]
[332607289,1721341871386,-500.0,0.00021917,2]
[332607290,1721341871397,-500.0,0.00021917,2]
[332607291,1721341871408,-500.0,0.00021917,2]
[332607292,1721341871418,-500.0,0.00021917,2]
[332607293,1721341871427,-500.0,0.00021917,2]
[332607294,1721341871437,-500.0,0.00021917,2]
[332607295,1721341871447,-500.0,0.00021917,2]
[332607296,1721341871458,-500.0,0.00021917,2]
[332607297,1721341871469,-500.0,0.00021917,2]
[332607298,1721341871479,-516.86228945,0.00021917,2]
[332607299,1721341871488,-525.39968545,0.00021917,2]
[332607300,1721341871499,-500.0,0.00021917,2]
[332607301,1721341871509,-510.43543175,0.00021917,2]
[332607302,1721341871519,-503.13337769,0.00021917,2]
[332607303,1721341871531,-505.89555228,0.00021917,2]
[332607304,1721341871542,-503.49589509,0.00021917,2]
[332607305,1721341871553,-500.0,0.00021917,2]
[332607306,1721341871562,-502.38053095,0.00021917,2]
[332607307,1721341871571,-500.0,0.00021917,2]
[332607308,1721341871581,-500.0,0.00021917,2]
[332607309,1721341871591,-551.73006991,0.00021917,2]
[332607310,1721341871600,-503.58467257,0.00021917,2]
[332607311,1721341871609,-507.38946244,0.00021917,2]
[332607312,1721341871618,-184.2736379,0.00021917,2]
[332607313,1721341871628,-501.09350504,0.00021917,2]
[332607314,1721341871637,-503.48747205,0.00021917,2]
[332607315,1721341871647,-500.0,0.00021917,2]
[332607316,1721341871656,-500.0,0.00021917,2]
[332607317,1721341871666,-500.0,0.00021917,2]
[332607318,1721341871676,-575.84430787,0.00021917,2]
[332607319,1721341871686,-510.49987473,0.00021917,2]
[332607320,1721341871695,-503.92071102,0.00021917,2]
[332607321,1721341871705,-503.713944,0.00021917,2]
[332607322,1721341871714,-500.0,0.00021917,2]
[332607323,1721341871724,-527.467278,0.00021917,2]
[332607324,1721341871734,-500.0,0.00021917,2]
[332607325,1721341871744,-500.0,0.00021917,2]
[332607326,1721341871753,-505.68407074,0.00021917,2]
[332607327,1721341871763,-500.0,0.00021917,2]
[332607328,1721341871773,-500.0,0.00021917,2]
[332607329,1721341871782,-500.0,0.00021917,2]
[332607330,1721341871791,-504.9446565,0.00021917,2]
[332607331,1721341871801,-500.0,0.00021917,2]
[332607332,1721341871812,-504.49169002,0.00021917,2]
[332607333,1721341871821,-500.0,0.00021917,2]
[332607334,1721341871831,-503.42435826,0.00021917,2]
[332607335,1721341871840,-500.0,0.00021917,2]
[332607336,1721341871849,-500.0,0.00021917,2]
[332607337,1721341871859,-503.78650263,0.00021917,2]
[332607338,1721341871869,-501.36213937,0.00021917,2]
[332607339,1721341871878,-500.0,0.00021917,2]
[332607340,1721341871888,-500.0,0.00021917,2]
[332607341,1721341871898,-500.0,0.00021917,2]
[332607342,1721341871909,-500.0,0.00021917,2]
[332607343,1721341871918,-500.0,0.00021917,2]
[332607344,1721341871928,-500.0,0.00021917,2]
[332607345,1721341871938,-508.04307359,0.00021917,2]
[332607346,1721341871948,-503.56475676,0.00021917,2]
[332607347,1721341871958,-499.99781428,0.00021917,2]
[332607348,1721341871968,-641.3467422,0.00021917,2]
[332607349,1721341871979,-506.19828915,0.00021917,2]
[332607350,1721341871988,-500.0,0.00021917,2]
[332607351,1721341871998,-501.8708181,0.00021917,2]
[332607352,1721341872125,-500.0,0.00021917,2]
[332607353,1721341872135,-504.51928059,0.00021917,2]
[332607354,1721341872147,-500.0,0.00021917,2]
[332607355,1721341872158,-504.52052992,0.00021917,2]
[332607356,1721341872168,-500.0,0.00021917,2]
[332607357,1721341872178,-568.97333272,0.00021917,2]
[332607358,1721341872188,-504.0714399,0.00021917,2]
[332607359,1721341872198,-168.83230905,0.00021917,2]
[332607360,1721341872209,-500.0,0.00021917,2]
[332607361,1721341872219,-500.0,0.00021917,2]
[332607362,1721341872229,-500.0,0.00021917,2]
[332607363,1721341872239,-500.0,0.00021917,2]
[332607364,1721341872249,-500.0,0.00021917,2]
[332607365,1721341872259,-498.27488213,0.00021917,2]
[332607366,1721341872269,-500.0,0.00021917,2]
[332607367,1721341872280,-501.80687339,0.00021917,2]
[332607368,1721341872291,-500.0,0.00021917,2]
[332607369,1721341872302,-504.2649073,0.00021917,2]
[332607370,1721341872312,-500.0,0.00021917,2]
[332607371,1721341872322,-503.08071312,0.00021917,2]
[332607372,1721341872333,-500.0,0.00021917,2]
[332607373,1721341872344,-500.0,0.00021917,2]
[332607374,1721341872354,-500.0,0.00021917,2]
[332607375,1721341872363,-500.0,0.00021917,2]
[332607376,1721341872372,-500.0,0.00021917,2]
[332607377,1721341872381,-500.0,0.00021917,2]
[332607378,1721341872391,-500.0,0.00021917,2]
[332607379,1721341872400,-170.31840121,0.00021917,2]
[332607380,1721341872410,-500.0,0.00021917,2]
[332607381,1721341872419,-560.19,0.00021917,2]
[332607382,1721341872428,-10277.43,0.00021917,2]
[332607383,1721341872438,-500.0,0.00021917,2]
[332607384,1721341872447,-500.0,0.00021917,2]
[332607385,1721341872456,-500.0,0.00021917,2]
[332607386,1721341872466,-500.0,0.00021917,2]
[332607387,1721341872476,-500.0,0.00021917,2]
[332607388,1721341872486,-266.5668508,0.00021917,2]
[332607389,1721341872497,-500.0,0.00021917,2]
[332607390,1721341872509,-500.0,0.00021917,2]
[332607391,1721341872518,-500.0,0.00021917,2]
[332607392,1721341872529,-500.0,0.00021917,2]
[332607393,1721341872540,-500.0,0.00021917,2]
[332607394,1721341872551,-500.0,0.00021917,2]
[332607395,1721341872562,-500.0,0.00021917,2]
[332607396,1721341872571,-500.0,0.00021917,2]
[332607397,1721341872580,-500.0,0.00021917,2]
[332607398,1721341872589,-401.54695935,0.00021917,2]
[332607399,1721341872598,-500.0,0.00021917,2]
[332607400,1721341872608,-500.0,0.00021917,2]
[332607401,1721341872618,-387.59881478,0.00021917,2]
[332607402,1721341872627,-500.0,0.00021917,2]
[332607403,1721341872636,-520.13607428,0.00021917,2]
[332607404,1721341872645,-569.68435512,0.00021917,2]
[332607405,1721341872654,-500.0,0.00021917,2]
[332607406,1721341872663,-500.0,0.00021917,2]
[332607407,1721341872672,-503.73521289,0.00021917,2]
[332607408,1721341872682,-372.59700483,0.00021917,2]
[332607409,1721341872691,-500.0,0.00021917,2]
[332607410,1721341872701,-500.0,0.00021917,2]
[332607411,1721341872710,-500.0,0.00021917,2]
[332607412,1721341872719,-500.0,0.00021917,2]
[332607413,1721341872730,-338.8970383,0.00021917,2]
[332607414,1721341872740,-500.0,0.00021917,2]
[332607415,1721341872752,-500.0,0.00021917,2]
[332607416,1721341872763,-500.0,0.00021917,2]
[332607417,1721341872774,-500.0,0.00021917,2]
[332607418,1721341872783,-500.0,0.00021917,2]
[332607419,1721341872792,-163.46870761,0.00021917,2]
[332607420,1721341872801,-511.02985987,0.00021917,2]
[332607421,1721341872811,-501.64096364,0.00021917,2]
[332607422,1721341872820,-500.0,0.00021917,2]
[332607423,1721341872829,-500.0,0.00021917,2]
[332607424,1721341872838,-500.0,0.00021917,2]
[332607425,1721341872847,-500.0,0.00021917,2]
[332607426,1721341872857,-502.93824144,0.00021917,2]
[332607427,1721341872867,-500.0,0.00021917,2]
[332607428,1721341872878,-500.73186597,0.00021917,2]
[332607429,1721341872888,-502.44680603,0.00021917,2]
[332607430,1721341872899,-500.0,0.00021917,2]
[332607431,1721341872909,-500.0,0.00021917,2]
[332607432,1721341872920,-491.3806577,0.00021917,2]
[332607433,1721341872931,-500.0,0.00021917,2]
[332607434,1721341872941,-501.34492169,0.00021917,2]
[332607435,1721341872952,-500.0,0.00021917,2]
[332607436,1721341872963,-500.0,0.00021917,2]
[332607437,1721341872976,-500.0,0.00021917,2]
[332607438,1721341872986,-502.28954664,0.00021917,2]
[332607439,1721341872997,-543.75,0.00021917,2]
[332607440,1721341873009,-500.0,0.00021917,2]
[332607441,1721341873019,-500.0,0.00021917,2]
[332607442,1721341873028,-500.0,0.00021917,2]
[332607443,1721341873038,-500.0,0.00021917,2]
[332607444,1721341873049,-500.0,0.00021917,2]
[332607445,1721341873060,-500.0,0.00021917,2]
[332607446,1721341873070,-500.0,0.00021917,2]
[332607447,1721341873079,-502.17499405,0.00021917,2]
[332607448,1721341873089,-500.0,0.00021917,2]
[332607449,1721341873097,-504.23653622,0.00021917,2]
[332607450,1721341873107,-500.0,0.00021917,2]
[332607451,1721341873117,-500.0,0.00021917,2]
[332607452,1721341873126,-515.40838656,0.00021917,2]
[332607453,1721341873136,-500.0,0.00021917,2]
[332607454,1721341873145,-500.0,0.00021917,2]
[332607455,1721341873155,-500.0,0.00021917,2]
[332607456,1721341873165,-500.0,0.00021917,2]
[332607457,1721341873174,-500.0,0.00021917,2]
[332607458,1721341873183,-457.58350401,0.00021917,2]
[332607459,1721341873193,-518.0,0.00021917,2]
[332607460,1721341873202,-500.0,0.00021917,2]
[332607461,1721341873211,-500.0,0.00021917,2]
[332607462,1721341873221,-504.25355104,0.00021917,2]
[332607463,1721341873230,-504.46428852,0.00021917,2]
[332607464,1721341873239,-502.81685587,0.00021917,2]
[332607465,1721341873249,-500.0,0.00021917,2]
[332607466,1721341873258,-517.33,0.00021917,2]
[332607467,1721341873267,-509.8699356,0.00021917,2]
[332607468,1721341873276,-500.0,0.00021917,2]
[332607469,1721341873286,-508.61838218,0.00021917,2]
[332607470,1721341873296,-500.0,0.00021917,2]
[332607471,1721341873307,-332.45363602,0.00021917,2]
[332607472,1721341873316,-500.0,0.00021917,2]
[332607473,1721341873325,-500.0,0.00021917,2]
[332607474,1721341873337,-500.0,0.00021917,2]
[332607475,1721341873347,-503.86169784,0.00021917,2]
[332607476,1721341873356,-500.0,0.00021917,2]
[332607477,1721341873366,-500.0,0.00021917,2]
[332607478,1721341873376,-500.0,0.00021917,2]
[332607479,1721341873385,-110.39687127,0.00021917,2]
[332607480,1721341873443,-348.72963886,0.00021917,2]
[332607481,1721341873453,-500.0,0.00021917,2]
[332607482,1721341873462,-500.0,0.00021917,2]
[332607483,1721341873471,-121.57038343,0.00021917,2]
[332607484,1721341873484,-395.83321514,0.00021917,2]
[332607485,1721341873493,-500.0,0.00021917,2]
[332607486,1721341873503,-500.0,0.00021917,2]
[332607487,1721341873512,-500.0,0.00021917,2]
[332607488,1721341873522,-500.0,0.00021917,2]
[332607489,1721341873531,-500.0,0.00021917,2]
[332607490,1721341873540,-616.5759681,0.00021917,2]
[332607491,1721341873550,-518.16443362,0.00021917,2]
[332607492,1721341873560,-501.89724778,0.00021917,2]
[332607493,1721341873569,-506.95192731,0.00021917,2]
[332607494,1721341873578,-500.0,0.00021917,2]
[332607495,1721341873587,-500.0,0.00021917,2]
[332607496,1721341873596,-500.0,0.00021917,2]
[332607497,1721341873605,-500.0,0.00021917,2]
[332607498,1721341873617,-516.54548451,0.00021917,2]
[332607499,1721341873626,-500.0,0.00021917,2]
[332607500,1721341873635,-500.0,0.00021917,2]
[332607501,1721341873644,-500.0,0.00021917,2]
[332607502,1721341873653,-515.90406128,0.00021917,2]
[332607503,1721341873662,-553.23201354,0.00021917,2]
[332607504,1721341873671,-500.0,0.00021917,2]
[332607505,1721341873681,-504.04232392,0.00021917,2]
[332607506,1721341873690,-500.0,0.00021917,2]
[332607507,1721341873699,-508.49188089,0.00021917,2]
[332607508,1721341873708,-505.03938321,0.00021917,2]
[332607509,1721341873718,-514.144973,0.00021917,2]
[332607510,1721341873727,-500.0,0.00021917,2]
[332607511,1721341873737,-507.77927266,0.00021917,2]
[332607512,1721341873746,-500.0,0.00021917,2]
[332607513,1721341873755,-510.57908044,0.00021917,2]
[332607514,1721341873764,-484.58946586,0.00021917,2]
[332607515,1721341873774,-503.93574131,0.00021917,2]
[332607516,1721341873785,-513.35,0.00021917,2]
[332607517,1721341873794,-500.0,0.00021917,2]
[332607518,1721341873809,-500.0,0.00021917,2]
[332607519,1721341873818,-500.0,0.00021917,2]
[332607520,1721341873830,-500.0,0.00021917,2]
[332607521,1721341873840,-500.0,0.00021917,2]
[332607522,1721341873849,-501.40132505,0.00021917,2]
[332607523,1721341873860,-500.0,0.00021917,2]
[332607524,1721341873869,-500.0,0.00021917,2]
[332607525,1721341873878,-577.6163578,0.00021917,2]
[332607526,1721341873889,-500.0,0.00021917,2]
[332607527,1721341873899,-500.0,0.00021917,2]
[332607528,1721341873909,-500.0,0.00021917,2]
[332607529,1721341873919,-500.0,0.00021917,2]
[332607530,1721341873929,-500.0,0.00021917,2]
[332607531,1721341873939,-500.0,0.00021917,2]
[332607532,1721341873949,-509.13,0.00021917,2]
[332607533,1721341873959,-500.0,0.00021917,2]
[332607534,1721341873969,-500.0,0.00021917,2]
[332607535,1721341873979,-500.0,0.00021917,2]
[332607536,1721341873989,-502.64626904,0.00021917,2]
[332607537,1721341873999,-500.0,0.00021917,2]
[332607538,1721341874008,-542.79,0.00021917,2]
[332607539,1721341874018,-510.0,0.00021917,2]
[332607540,1721341874028,-500.0,0.00021917,2]
[332607541,1721341874037,-500.0,0.00021917,2]
[332607542,1721341874047,-503.89935516,0.00021917,2]
[332607543,1721341874057,-500.0,0.00021917,2]
[332607544,1721341874067,-500.0,0.00021917,2]
[332607545,1721341874076,-459.30582877,0.00021917,2]
[332607546,1721341874086,-502.44459587,0.00021917,2]
[332607547,1721341874096,-500.0,0.00021917,2]
[332607548,1721341874105,-501.11341208,0.00021917,2]
[332607549,1721341874114,-500.0,0.00021917,2]
[332607550,1721341874124,-504.98797468,0.00021917,2]
[332607551,1721341874133,-500.0,0.00021917,2]
[332607552,1721341874143,-500.0,0.00021917,2]
[332607553,1721341874152,-509.08410528,0.00021917,2]
[332607554,1721341874163,-500.0,0.00021917,2]
[332607555,1721341874172,-500.0,0.00021917,2]
[332607556,1721341874182,-500.0,0.00021917,2]
[332607557,1721341874192,-500.69973772,0.00021917,2]
[332607558,1721341874201,-500.0,0.00021917,2]
[332607559,1721341874210,-500.0,0.00021917,2]
[332607560,1721341874220,-500.0,0.00021917,2]
[332607561,1721341874229,-500.0,0.00021917,2]
[332607562,1721341874238,-500.0,0.00021917,2]
[332607563,1721341874247,-500.0,0.00021917,2]
[332607564,1721341874256,-500.0,0.00021917,2]
[332607565,1721341874265,-500.0,0.00021917,2]
[332607566,1721341874275,-500.0,0.00021917,2]
[332607567,1721341874285,-502.95614404,0.00021917,2]
[332607568,1721341874294,-500.00000001,0.00021917,2]
[332607569,1721341874304,-500.0,0.00021917,2]
[332607570,1721341874314,-405.79160981,0.00021917,2]
[332607571,1721341874323,-500.0,0.00021917,2]
[332607572,1721341874336,-500.0,0.00021917,2]
[332607573,1721341874346,-590.28456722,0.00021917,2]
[332607574,1721341874467,-495.58565603,0.00021917,2]
[332607575,1721341874477,-501.42052869,0.00021917,2]
[332607576,1721341874487,-506.11616401,0.00021917,2]
[332607577,1721341874496,-500.0,0.00021917,2]
[332607578,1721341874506,-500.0,0.00021917,2]
[332607579,1721341874515,-500.0,0.00021917,2]
[332607580,1721341874525,-500.0,0.00021917,2]
[332607581,1721341874534,-500.0,0.00021917,2]
[332607582,1721341874543,-502.89136808,0.00021917,2]
[332607583,1721341874553,-500.0,0.00021917,2]
[332607584,1721341874562,-500.0,0.00021917,2]
[332607585,1721341874572,-500.9878476,0.00021917,2]
[332607586,1721341874581,-508.63588562,0.00021917,2]
[332607587,1721341874590,-500.0,0.00021917,2]
[332607588,1721341874600,-502.14594538,0.00021917,2]
[332607589,1721341874609,-500.0,0.00021917,2]
[332607590,1721341874618,-500.0,0.00021917,2]
[332607591,1721341874627,-500.0,0.00021917,2]
[332607592,1721341874636,-500.37,0.00021917,2]
[332607593,1721341874645,-500.0,0.00021917,2]
[332607594,1721341874655,-443.8842919,0.00021917,2]
[332607595,1721341874664,-500.0,0.00021917,2]
[332607596,1721341874674,-413.72043881,0.00021917,2]
[332607597,1721341874683,-503.53594541,0.00021917,2]
[332607598,1721341874692,-500.0,0.00021917,2]
[332607599,1721341874701,-500.0,0.00021917,2]
[332607600,1721341874711,-500.0,0.00021917,2]
[332607601,1721341874720,-500.0,0.00021917,2]
[332607602,1721341874730,-190.88335774,0.00021917,2]
[332607603,1721341874739,-415.9609977,0.00021917,2]
[332607604,1721341874748,-500.0,0.00021917,2]
[332607605,1721341874758,-500.0,0.00021917,2]
[332607606,1721341874767,-500.0,0.00021917,2]
[332607607,1721341874776,-500.0,0.00021917,2]
[332607608,1721341874785,-502.16949924,0.00021917,2]
[332607609,1721341874794,-500.0,0.00021917,2]
[332607610,1721341874804,-502.96509409,0.00021917,2]
[332607611,1721341874813,-502.29700293,0.00021917,2]
[332607612,1721341874822,-500.0,0.00021917,2]
[332607613,1721341874831,-503.41170029,0.00021917,2]
[332607614,1721341874841,-501.87281258,0.00021917,2]
[332607615,1721341874850,-537.16736481,0.00021917,2]
[332607616,1721341874859,-500.0,0.00021917,2]
[332607617,1721341874869,-500.0,0.00021917,2]
[332607618,1721341874878,-500.0,0.00021917,2]
[332607619,1721341874887,-505.47846916,0.00021917,2]
[332607620,1721341874896,-508.43150304,0.00021917,2]
[332607621,1721341874906,-500.89252704,0.00021917,2]
[332607622,1721341874915,-504.11408757,0.00021917,2]
[332607623,1721341874925,-500.0,0.00021917,2]
[332607624,1721341874934,-500.0,0.00021917,2]
[332607625,1721341874944,-501.21699663,0.00021917,2]
[332607626,1721341874953,-500.0,0.00021917,2]
[332607627,1721341874962,-500.0,0.00021917,2]
[332607628,1721341874972,-501.02775109,0.00021917,2]
[332607629,1721341874982,-502.41928809,0.00021917,2]
[332607630,1721341874991,-502.88522141,0.00021917,2]
[332607631,1721341875000,-500.0,0.00021917,2]
[332607632,1721341875011,-500.0,0.00021917,2]
[332607633,1721341875020,-500.0,0.00021917,2]
[332607634,1721341875030,-500.0,0.00021917,2]
[332607635,1721341875039,-500.0,0.00021917,2]
[332607636,1721341875048,-500.0,0.00021917,2]
[332607637,1721341875058,-500.0,0.00021917,2]
[332607638,1721341875067,-500.0,0.00021917,2]
[332607639,1721341875077,-500.0,0.00021917,2]
[332607640,1721341875087,-500.0,0.00021917,2]
[332607641,1721341875096,-500.0,0.00021917,2]
[332607642,1721341875106,-500.0,0.00021917,2]
[332607643,1721341875115,-500.0,0.00021917,2]
[332607644,1721341875124,-541.82935569,0.00021917,2]
[332607645,1721341875133,-500.0,0.00021917,2]
[332607646,1721341875143,-500.0,0.00021917,2]
[332607647,1721341875152,-469.51986175,0.00021917,2]
[332607648,1721341875161,-500.0,0.00021917,2]
[332607649,1721341875171,-500.0,0.00021917,2]